[Event "22nd ECCC Women 2017"]
[Site "Antalya"]
[Date "2017.10.12"]
[Round "5"]
[White "Mammadova, Gulnar"]
[Black "Voit, Daria"]
[Result "0-1"]
[ECO "B50"]
[WhiteElo "2385"]
[BlackElo "2387"]
[Annotator "NA"]
[PlyCount "108"]
[EventType "team-tourn"]
[EventCountry "TUR"]
[SourceTitle "playchess.com"]
[Source "ChessBase"]
[SourceQuality "1"]
[WhiteTeam "Odlar Yurdu"]
[BlackTeam "Legacy Square Capital"]
[TimeControl "40/5400+30:1800+30"]

1. e4 {[%emt 0:01:30]} c5 {[%emt 0:01:00]} 2. Nf3 {[%emt 0:00:30]} e6 {[%emt 0:00:30]} 3. b3 {[%emt 0:00:30]} d6 {[%emt 0:00:00]} 4. Bb2 {[%emt 0:01:30]} Nf6 {[%emt 0:00:00]} 5. d3 {[%emt 0:04:30]} Nc6 {[%emt 0:00:30]} 6. g3 {[%emt 0:00:30] B50: Sizilianisch (Verschiedenes mit 2...d6)} (6. Nbd2 Be7 7. g3 O-O 8. Bg2 e5 9. O-O b5 10. a3 a5 11. c3 Qb6 12. d4 cxd4 13. cxd4 exd4 {0-1 (37) Bacrot,E (2695)-Rublevsky,S (2676) Moscow 2007}) 6... g6 {[%emt 0:03:30]} 7. Bg2 {[%emt 0:01:30]} Bg7 {[%emt 0:00:30]} 8. O-O {[%emt 0:00:00]} O-O {[%emt 0:00:00]} 9. Nbd2 {[%emt 0:05:00]} e5 {[%emt 0:06:00]} 10. Nc4 {[%emt 0:02:30]} h6 {[%emt 0:03:30]} 11. a4 {[%emt 0:04:30]} Be6 {[%emt 0:00:30]} 12. Nfd2 {[%emt 0:04:30]} Qd7 {[%emt 0:21:30]} 13. f4 {[%emt 0:14:30]} exf4 $15 {[%emt 0:00:30] stays ahead.} (13... d5 $2 {[%emt 0:01:30]}) 14. gxf4 {[%emt 0:00:30]} (14. Rxf4 Ng4 $11) 14... d5 $146 {[%emt 0:01:30]} (14... Nd4) 15. Ne5 {[%emt 0:07:30]} Nxe5 {[%emt 0:00:30]} 16. fxe5 {[%emt 0:00:30]} Nh5 {[%emt 0:03:30]} 17. exd5 {[%emt 0:02:30]} Bxd5 {[%emt 0:00:30]} 18. Bxd5 {[%emt 0:01:30]} Qxd5 {[%emt 0:00:30]} 19. Qf3 {[%emt 0:00:00]} Rad8 {[%emt 0:14:30]} 20. Rae1 {[%emt 0:04:00]} Rfe8 {[%emt 0:05:30]} 21. Qxd5 {[%emt 0:05:30]} Rxd5 {[%emt 0:00:00]} 22. Nc4 {[%emt 0:00:30]} Re6 {[%emt 0:03:00]} 23. Ne3 {[%emt 0:06:30]} Rd7 {[%emt 0:01:30]} 24. Ng4 {[%emt 0:00:30]} g5 {[%emt 0:03:30]} 25. Bc1 {[%emt 0:06:30]} Rde7 {[%emt 0:07:30]} 26. Rf5 {[%emt 0:04:30]} (26. Re3 $11) 26... Kh7 {[%emt 0:01:30]} 27. Rf3 {[%emt 0:02:58]} Kg6 {[%emt 0:02:31]} 28. Rfe3 {[%emt 0:02:57]} Kf5 {[%emt 0:08:51]} 29. Re4 {[%emt 0:06:25]} Bxe5 {[%emt 0:00:28]} 30. Ne3+ {[%emt 0:00:27]} Kg6 {[%emt 0:00:04]} 31. Nd5 {[%emt 0:00:52]} Re8 {[%emt 0:00:28]} 32. Kg2 {[%emt 0:01:21]} Nf6 {[%emt 0:02:52]} 33. Nxf6 {[%emt 0:00:28]} Kxf6 {[%emt 0:00:11]} 34. Ba3 {[%emt 0:01:38]} Bd4 {[%emt 0:02:17]} 35. Kf3 {[%emt 0:02:58]} Rxe4 {[%emt 0:01:47]} 36. dxe4 {[%emt 0:00:19]} b6 {[%emt 0:01:02]} 37. Rd1 {[%emt 0:00:24]} Ke6 {[%emt 0:05:57]} 38. b4 {[%emt 0:01:39]} cxb4 {[%emt 0:00:55]} 39. Bxb4 {[%emt 0:00:30]} Be5 {[%emt 0:00:00]} 40. a5 {[%emt 0:00:00]} bxa5 {[%emt 0:31:21]} 41. Bxa5 {[%emt 0:01:34]} Rc8 {[%emt 0:00:00]} 42. c3 {[%emt 0:02:30]} h5 {[%emt 0:00:00]} 43. h3 {[%emt 0:00:30]} Rc5 {[%emt 0:00:00]} 44. Bb4 {[%emt 0:00:30]} Rb5 {[%emt 0:00:00]} 45. Rd8 {[%emt 0:04:30]} a5 {[%emt 0:00:00]} 46. Bf8 {[%emt 0:12:01]} f6 {[%emt 0:00:00]} 47. c4 {[%emt 0:02:26]} Rb8 {[%emt 0:00:00]} 48. Rxb8 {[%emt 0:01:31]} Bxb8 {[%emt 0:00:00]} 49. Ba3 {[%emt 0:00:00]} Kd7 {[%emt 0:00:00]} 50. Ke3 {[%emt 0:02:16]} Bd6 {[%emt 0:00:00]} 51. Bb2 {[%emt 0:01:33]} Ke6 {[%emt 0:00:00]} 52. Kd3 {[%emt 0:01:37]} a4 {[%emt 0:00:00]} 53. Kc2 {[%emt 0:00:43]} a3 {[%emt 0:01:42]} 54. Bc1 {[%emt 0:00:38]} Ke5 {[%emt 0:00:06]} 0-1

[Event "22nd ECCC Women 2017"]
[Site "Antalya"]
[Date "2017.10.13"]
[Round "5"]
[White "Savina, Anastasia"]
[Black "Balajayeva, Khanim"]
[Result "0-1"]
[ECO "D27"]
[WhiteElo "2350"]
[BlackElo "2319"]
[Annotator "ChessBase"]
[PlyCount "94"]
[EventType "team-tourn"]
[EventCountry "TUR"]
[SourceTitle "playchess.com"]
[Source "ChessBase"]
[SourceQuality "1"]
[WhiteTeam "Legacy Square Capital"]
[BlackTeam "Odlar Yurdu"]
[TimeControl "40/5400+30:1800+30"]

1. d4 {[%emt 0:00:30]} d5 {[%emt 0:02:00]} 2. c4 {[%emt 0:00:30]} dxc4 {[%emt 0:00:30]} 3. e3 {[%emt 0:00:00]} Nf6 {[%emt 0:00:30]} 4. Bxc4 {[%emt 0:00:00]} e6 {[%emt 0:00:30]} 5. Nf3 {[%emt 0:00:30]} c5 {[%emt 0:00:30]} 6. O-O {[%emt 0:00:00]} a6 {[%emt 0:00:00]} 7. b3 {[%emt 0:01:00]} b5 {[%emt 0:04:00]} 8. Be2 {[%emt 0:00:00]} Bb7 {[%emt 0:00:30]} 9. Bb2 {[%emt 0:01:00]} Nbd7 {[%emt 0:00:30]} 10. a4 {[%emt 0:00:30]} b4 {[%emt 0:02:30]} 11. Nbd2 {[%emt 0:00:30]} Be7 {[%emt 0:03:30]} 12. Rc1 {[%emt 0:01:30]} Rc8 {[%emt 0:04:30]} 13. Nc4 {[%emt 0:04:30]} O-O {[%emt 0:08:30]} 14. h3 {[%emt 0:09:30]} Nd5 {[%emt 0:11:30]} 15. Nfe5 {[%emt 0:12:30]} cxd4 {[%emt 0:04:30]} 16. Nxd7 {[%emt 0:02:30]} Qxd7 {[%emt 0:00:00]} 17. Bxd4 {[%emt 0:01:30]} Ba8 {[%emt 0:21:00]} 18. Bd3 {[%emt 0:21:30]} Bf6 {[%emt 0:05:30]} 19. Qh5 {[%emt 0:21:30]} g6 {[%emt 0:07:30]} 20. Qg4 {[%emt 0:02:12]} Bxd4 {[%emt 0:08:49]} 21. Qxd4 {[%emt 0:00:06]} Qc7 {[%emt 0:00:43]} 22. e4 {[%emt 0:11:37]} Nf4 {[%emt 0:01:57]} 23. Ne5 {[%emt 0:05:16]} Qe7 {[%emt 0:09:22]} 24. Rxc8 {[%emt 0:02:40]} Rxc8 {[%emt 0:00:04]} 25. Bxa6 {[%emt 0:00:34]} Rd8 {[%emt 0:02:24]} 26. Qe3 {[%emt 0:00:43]} Qg5 {[%emt 0:00:14]} 27. g3 {[%emt 0:00:42]} Nxh3+ {[%emt 0:00:30]} 28. Kg2 {[%emt 0:00:00]} Qxe5 {[%emt 0:00:29]} 29. Kxh3 {[%emt 0:00:27]} Bxe4 {[%emt 0:00:10]} 30. Qf4 {[%emt 0:00:41]} Qh5+ {[%emt 0:01:27]} 31. Qh4 {[%emt 0:00:30]} Qf5+ {[%emt 0:00:10]} 32. Kh2 {[%emt 0:00:16]} Rd5 {[%emt 0:00:34]} 33. Be2 {[%emt 0:00:38]} Bd3 {[%emt 0:01:35]} 34. Bg4 {[%emt 0:00:35]} Qe4 {[%emt 0:00:21]} 35. Rc1 {[%emt 0:00:28]} Qd4 {[%emt 0:00:29]} 36. Kg1 {[%emt 0:00:31]} Kg7 {[%emt 0:00:25]} 37. Bf3 {[%emt 0:00:38]} Qb2 {[%emt 0:00:18]} 38. Rc7 {[%emt 0:00:15]} Rf5 {[%emt 0:00:41]} 39. Kg2 {[%emt 0:00:37]} Bf1+ {[%emt 0:00:18]} 40. Kxf1 {[%emt 0:00:30]} Rxf3 {[%emt 0:00:30]} 41. g4 {[%emt 0:07:04]} Qb1+ {[%emt 0:06:30]} 42. Kg2 {[%emt 0:00:30]} Qe4 {[%emt 0:01:30]} 43. Rc4 {[%emt 0:08:05]} Qd5 {[%emt 0:00:30]} 44. Kh2 {[%emt 0:05:02]} h6 {[%emt 0:00:00]} 45. g5 {[%emt 0:03:56]} hxg5 {[%emt 0:00:00]} 46. Qd4+ {[%emt 0:00:12]} Qxd4 {[%emt 0:01:30]} 47. Rxd4 {[%emt 0:00:30]} Rxb3 {[%emt 0:00:00]} 0-1

[Event "22nd ECCC Women 2017"]
[Site "Antalya"]
[Date "2017.10.13"]
[Round "5"]
[White "Sandu, Mihaela"]
[Black "Haussernot, Cecile"]
[Result "1-0"]
[ECO "B92"]
[WhiteElo "2278"]
[BlackElo "2169"]
[Annotator "ChessBase"]
[PlyCount "75"]
[EventType "team-tourn"]
[EventCountry "TUR"]
[SourceTitle "playchess.com"]
[Source "ChessBase"]
[SourceQuality "1"]
[WhiteTeam "Timisoara"]
[BlackTeam "Mulhouse Philidor"]
[TimeControl "40/5400+30:1800+30"]

1. e4 c5 2. Nf3 {[%emt 0:01:00]} d6 {[%emt 0:02:30]} 3. d4 {[%emt 0:00:30]} cxd4 {[%emt 0:00:00]} 4. Nxd4 {[%emt 0:00:00]} Nf6 {[%emt 0:00:00]} 5. Nc3 {[%emt 0:00:00]} a6 {[%emt 0:00:00]} 6. Be2 {[%emt 0:00:00]} e5 {[%emt 0:00:00]} 7. Nb3 {[%emt 0:01:00]} Be6 {[%emt 0:00:30]} 8. O-O {[%emt 0:00:30]} Be7 {[%emt 0:00:00]} 9. Be3 {[%emt 0:00:00]} O-O {[%emt 0:00:00]} 10. Qd2 {[%emt 0:00:00]} Nbd7 {[%emt 0:00:30]} 11. a4 {[%emt 0:00:30]} Rc8 {[%emt 0:00:00]} 12. f3 {[%emt 0:02:30]} Nb6 {[%emt 0:00:00]} 13. a5 {[%emt 0:00:30]} Nc4 {[%emt 0:00:30]} 14. Bxc4 {[%emt 0:00:30]} Rxc4 {[%emt 0:00:00]} 15. Rfd1 {[%emt 0:01:30]} Qc7 {[%emt 0:04:00]} 16. Kh1 {[%emt 0:21:30]} Qc6 {[%emt 0:07:30]} 17. Nc1 {[%emt 0:03:30]} Rc8 {[%emt 0:07:30]} 18. N1e2 {[%emt 0:02:30]} Ne8 {[%emt 0:17:30]} 19. Bb6 {[%emt 0:06:30]} h6 {[%emt 0:06:30]} 20. Be3 {[%emt 0:03:30]} Qd7 {[%emt 0:10:30]} 21. b3 {[%emt 0:06:30]} R4c6 {[%emt 0:00:30]} 22. Ra2 {[%emt 0:00:30]} f5 {[%emt 0:04:30]} 23. Nd5 {[%emt 0:01:30]} fxe4 {[%emt 0:03:30]} 24. fxe4 {[%emt 0:00:30]} Nf6 {[%emt 0:05:30]} 25. Nxf6+ {[%emt 0:00:30]} Bxf6 {[%emt 0:00:30]} 26. c4 {[%emt 0:00:30]} Qf7 {[%emt 0:02:30]} 27. Nc3 {[%emt 0:01:30]} Rf8 {[%emt 0:00:30]} 28. Rf1 {[%emt 0:02:30]} Qg6 {[%emt 0:06:30]} 29. Raa1 {[%emt 0:00:30]} Rd8 {[%emt 0:10:27]} 30. Nd5 {[%emt 0:11:30]} Bxd5 {[%emt 0:01:05]} 31. Qxd5+ {[%emt 0:00:30]} Kh7 {[%emt 0:00:23]} 32. Rf3 {[%emt 0:03:30]} Bg5 {[%emt 0:09:48]} 33. Rg3 Bxe3 {[%emt 0:02:18]} 34. Rxg6 {[%emt 0:05:00]} Kxg6 {[%emt 0:00:05]} 35. Rf1 {[%emt 0:02:30]} Rc7 {[%emt 0:00:49]} 36. Qe6+ {[%emt 0:00:30]} Kh7 {[%emt 0:00:05]} 37. g3 {[%emt 0:00:30]} Bg5 {[%emt 0:01:38]} 38. Rf7 {[%emt 0:02:30]} 1-0

[Event "22nd ECCC Women 2017"]
[Site "Antalya"]
[Date "2017.10.12"]
[Round "5"]
[White "Isgandarova, Khayala"]
[Black "Can, Isil"]
[Result "1-0"]
[ECO "A08"]
[WhiteElo "2242"]
[BlackElo "1791"]
[Annotator "NA"]
[PlyCount "59"]
[EventType "team-tourn"]
[EventCountry "TUR"]
[SourceTitle "playchess.com"]
[Source "ChessBase"]
[SourceQuality "1"]
[WhiteTeam "Anatolia"]
[BlackTeam "Mediterranean"]
[TimeControl "40/5400+30:1800+30"]

1. Nf3 d5 2. g3 {[%emt 0:00:00]} Nf6 {[%emt 0:03:30]} 3. Bg2 {[%emt 0:00:30]} c5 {[%emt 0:02:30]} 4. d3 {[%emt 0:00:30]} Nc6 {[%emt 0:03:30]} 5. O-O {[%emt 0:00:00]} e5 {[%emt 0:02:30]} 6. e4 {[%emt 0:01:00]} d4 {[%emt 0:00:30]} 7. Nbd2 {[%emt 0:00:30] A08: King's Indian Attack} (7. a4 Be7 8. Na3 Bg4 9. h3 Bh5 10. Nc4 Nd7 11. Qe1 O-O 12. Nh2 b6 13. h4 f6 14. Bh3 Bf7 15. f4 {0-1 (55) Yuffa,D (2527)-Inarkiev,E (2694) Sochi 2017}) 7... Bg4 {[%emt 0:07:30]} 8. h3 {[%emt 0:00:30]} Bh5 {[%emt 0:00:30]} 9. g4 {[%emt 0:03:30]} Bg6 {[%emt 0:00:00]} 10. Nc4 {[%emt 0:00:00]} Nd7 {[%emt 0:02:00]} 11. a4 {[%emt 0:06:00]} Be7 {[%emt 0:09:30]} 12. Ne1 {[%emt 0:15:30]} Nb6 $146 {[%emt 0:05:30]} ({Predecessor:} 12... f6 13. f4 Bf8 14. f5 h5 15. Nf3 hxg4 16. hxg4 Qc7 {0-1 (16) Sergio Filho,C (1893)-Vitorazzi,V (1650) Cuiaba 2016}) 13. Nxb6 {[%emt 0:06:30]} Qxb6 {[%emt 0:00:00]} 14. f4 {[%emt 0:00:00]} f6 {[%emt 0:00:00]} 15. Nf3 {[%emt 0:00:00]} O-O-O {[%emt 0:03:30]} 16. Nh4 {[%emt 0:08:30]} Qc7 {[%emt 0:09:30]} 17. Nf5 {[%emt 0:06:30]} Bxf5 {[%emt 0:00:30]} 18. exf5 {[%emt 0:00:30]} Bd6 {[%emt 0:02:30]} 19. a5 {[%emt 0:04:30]} a6 {[%emt 0:00:30]} 20. Qf3 {[%emt 0:01:30]} Rde8 {[%emt 0:07:30]} 21. Bd2 {[%emt 0:09:30]} g6 {[%emt 0:06:30]} 22. fxg6 {[%emt 0:01:30]} hxg6 {[%emt 0:03:30]} 23. Rae1 {[%emt 0:02:30]} exf4 {[%emt 0:08:30]} (23... Kb8 $11) 24. Rxe8+ {[%emt 0:01:30]} Rxe8 {[%emt 0:00:00]} 25. Bxf4 $16 {[%emt 0:00:00]} Ne5 {[%emt 0:11:29]} 26. Qd5 {[%emt 0:09:00]} g5 {[%emt 0:02:02]} 27. Bg3 {[%emt 0:00:30]} Qe7 {[%emt 0:04:09]} 28. c3 {[%emt 0:06:49]} Kb8 {[%emt 0:03:41]} 29. Rxf6 {[%emt 0:00:51]} Rd8 {[%emt 0:01:47]} 30. Rxd6 {[%emt 0:00:41]} 1-0

[Event "22nd ECCC Women 2017"]
[Site "Antalya"]
[Date "2017.10.13"]
[Round "5"]
[White "Dragomirescu, Angela"]
[Black "Neuhauser, Salome"]
[Result "1-0"]
[ECO "A63"]
[WhiteElo "2231"]
[BlackElo "2140"]
[Annotator "ChessBase"]
[PlyCount "115"]
[EventType "team-tourn"]
[EventCountry "TUR"]
[SourceTitle "playchess.com"]
[Source "ChessBase"]
[SourceQuality "1"]
[WhiteTeam "Timisoara"]
[BlackTeam "Mulhouse Philidor"]
[TimeControl "40/5400+30:1800+30"]

1. d4 Nf6 2. c4 c5 3. d5 e6 4. Nc3 exd5 5. cxd5 {[%emt 0:00:30]} d6 {[%emt 0:02:00]} 6. Nf3 {[%emt 0:01:30]} g6 {[%emt 0:00:30]} 7. g3 {[%emt 0:00:00]} Bg7 {[%emt 0:00:30]} 8. Bg2 {[%emt 0:00:00]} O-O {[%emt 0:00:00]} 9. O-O {[%emt 0:00:30]} Re8 {[%emt 0:00:00]} 10. Re1 {[%emt 0:01:30]} a6 {[%emt 0:10:30]} 11. a4 {[%emt 0:05:30]} Nbd7 {[%emt 0:01:30]} 12. e4 {[%emt 0:07:30]} Qc7 {[%emt 0:09:30]} 13. h3 {[%emt 0:05:30]} Rb8 {[%emt 0:01:30]} 14. Bf1 {[%emt 0:03:30]} h6 {[%emt 0:30:30]} 15. Bf4 {[%emt 0:19:30]} Nh5 {[%emt 0:12:30]} 16. Be3 {[%emt 0:00:30]} Ne5 {[%emt 0:11:42]} 17. Nxe5 {[%emt 0:01:30]} Rxe5 {[%emt 0:00:02]} 18. g4 {[%emt 0:04:30]} Nf6 {[%emt 0:04:16]} 19. Bf4 {[%emt 0:00:30]} Qe7 {[%emt 0:06:27]} 20. Bxe5 {[%emt 0:11:30]} Qxe5 {[%emt 0:00:35]} 21. Qd2 {[%emt 0:00:30]} Bxg4 {[%emt 0:02:38]} 22. hxg4 {[%emt 0:06:30]} Nxg4 {[%emt 0:00:01]} 23. Bg2 {[%emt 0:00:00]} Qh2+ {[%emt 0:01:30]} 24. Kf1 {[%emt 0:00:00]} Bd4 {[%emt 0:00:52]} 25. Nd1 {[%emt 0:00:00]} Qh5 {[%emt 0:03:26]} 26. Ra3 {[%emt 0:00:00]} Re8 {[%emt 0:00:36]} 27. Rh3 {[%emt 0:15:37]} Nh2+ {[%emt 0:00:00]} 28. Rxh2 {[%emt 0:07:03]} Qxh2 {[%emt 0:00:28]} 29. Qd3 {[%emt 0:00:31]} Qf4 {[%emt 0:00:55]} 30. Qf3 {[%emt 0:02:39]} Qd2 {[%emt 0:01:17]} 31. Qe2 {[%emt 0:01:07]} Qg5 {[%emt 0:01:04]} 32. Ne3 {[%emt 0:01:40]} h5 {[%emt 0:00:05]} 33. Nc4 {[%emt 0:00:26]} Qf4 {[%emt 0:00:34]} 34. Qf3 {[%emt 0:00:36]} Qh2 {[%emt 0:00:56]} 35. Qg3 {[%emt 0:01:11]} Qxg3 {[%emt 0:00:52]} 36. fxg3 {[%emt 0:00:02]} b5 {[%emt 0:00:26]} 37. axb5 {[%emt 0:01:11]} axb5 {[%emt 0:00:00]} 38. Nxd6 {[%emt 0:00:00]} Rb8 {[%emt 0:00:30]} 39. e5 {[%emt 0:01:03]} Kf8 {[%emt 0:00:54]} 40. b3 {[%emt 0:00:00]} Ke7 {[%emt 0:01:24]} 41. Ne4 {[%emt 0:10:24]} Bxe5 {[%emt 0:00:30]} 42. Nxc5 {[%emt 0:02:30]} Kd6 {[%emt 0:07:30]} 43. Rxe5 {[%emt 0:00:30]} Kxc5 {[%emt 0:00:30]} 44. Re7 {[%emt 0:00:30]} Rf8 {[%emt 0:08:07]} 45. Rc7+ {[%emt 0:01:30]} Kd6 {[%emt 0:00:03]} 46. Rc6+ {[%emt 0:00:30]} Kd7 {[%emt 0:00:59]} 47. Rb6 {[%emt 0:00:30]} f5 {[%emt 0:00:16]} 48. Rxg6 {[%emt 0:00:30]} f4 {[%emt 0:00:07]} 49. Kf2 {[%emt 0:01:30]} fxg3+ {[%emt 0:02:02]} 50. Kxg3 {[%emt 0:00:00]} h4+ {[%emt 0:01:21]} 51. Kxh4 {[%emt 0:02:00]} Rf4+ {[%emt 0:00:04]} 52. Rg4 {[%emt 0:00:30]} Rf2 {[%emt 0:00:03]} 53. Kg3 {[%emt 0:01:30]} Rc2 {[%emt 0:00:08]} 54. Rb4 {[%emt 0:00:30]} Rc5 {[%emt 0:00:09]} 55. Kf4 {[%emt 0:03:01]} Kd6 {[%emt 0:00:01]} 56. Be4 {[%emt 0:00:00]} Ke7 {[%emt 0:01:44]} 57. Ke5 {[%emt 0:00:50]} Kd7 {[%emt 0:00:03]} 58. Bd3 {[%emt 0:00:06]} 1-0

[Event "22nd ECCC Women 2017"]
[Site "Antalya"]
[Date "2017.10.13"]
[Round "5"]
[White "Choisy, Mathilde"]
[Black "Cosma, Elena-Luminita"]
[Result "1/2-1/2"]
[ECO "C11"]
[WhiteElo "2162"]
[BlackElo "2333"]
[Annotator "ChessBase"]
[PlyCount "60"]
[EventType "team-tourn"]
[EventCountry "TUR"]
[SourceTitle "playchess.com"]
[Source "ChessBase"]
[SourceQuality "1"]
[WhiteTeam "Mulhouse Philidor"]
[BlackTeam "Timisoara"]
[TimeControl "40/5400+30:1800+30"]

1. e4 e6 2. d4 d5 3. Nc3 Nf6 4. e5 {[%emt 0:02:00]} Nfd7 {[%emt 0:00:30]} 5. f4 {[%emt 0:00:30]} c5 {[%emt 0:01:30]} 6. Nf3 {[%emt 0:00:00]} Nc6 {[%emt 0:00:00]} 7. Be3 {[%emt 0:00:00]} cxd4 {[%emt 0:00:00]} 8. Nxd4 {[%emt 0:00:30]} Bc5 {[%emt 0:00:00]} 9. Qd2 {[%emt 0:01:30]} O-O {[%emt 0:00:00]} 10. O-O-O {[%emt 0:02:30]} a6 {[%emt 0:00:30]} 11. Qf2 {[%emt 0:04:30]} Nxd4 {[%emt 0:02:30]} 12. Bxd4 {[%emt 0:00:30]} Bxd4 {[%emt 0:14:30]} 13. Qxd4 {[%emt 0:00:00]} f6 {[%emt 0:01:30]} 14. exf6 {[%emt 0:08:00]} Qxf6 {[%emt 0:00:00]} 15. g3 {[%emt 0:01:30]} Qxd4 {[%emt 0:13:00]} 16. Rxd4 {[%emt 0:00:30]} Nf6 {[%emt 0:14:30]} 17. Bg2 {[%emt 0:10:30]} Bd7 {[%emt 0:00:30]} 18. Re1 {[%emt 0:02:30]} Rae8 {[%emt 0:01:30]} 19. Rd2 {[%emt 0:05:30]} Bc6 {[%emt 0:05:30]} 20. Bh3 {[%emt 0:13:30]} Ne4 {[%emt 0:15:30]} 21. Nxe4 {[%emt 0:06:30]} dxe4 {[%emt 0:00:30]} 22. Bg2 {[%emt 0:00:30]} e5 {[%emt 0:00:30]} 23. f5 {[%emt 0:04:30]} Rxf5 {[%emt 0:00:30]} 24. Bxe4 {[%emt 0:00:00]} Bxe4 {[%emt 0:01:30]} 25. Rxe4 {[%emt 0:00:00]} Rf1+ {[%emt 0:04:30]} 26. Rd1 {[%emt 0:00:00]} Rf2 {[%emt 0:00:00]} 27. Rd2 {[%emt 0:01:00]} Rf1+ {[%emt 0:00:00]} 28. Rd1 {[%emt 0:00:00]} Rf2 {[%emt 0:00:30]} 29. Rd2 {[%emt 0:08:00]} Rf1+ {[%emt 0:01:30]} 30. Rd1 {[%emt 0:00:30]} Rf2 {[%emt 0:11:23]} 1/2-1/2

[Event "22nd ECCC Women 2017"]
[Site "Antalya"]
[Date "2017.10.12"]
[Round "5"]
[White "Ozbay, Ece"]
[Black "Kovanova, Baira"]
[Result "0-1"]
[ECO "C95"]
[WhiteElo "1998"]
[BlackElo "2371"]
[Annotator "NA"]
[PlyCount "112"]
[EventType "team-tourn"]
[EventCountry "TUR"]
[SourceTitle "playchess.com"]
[Source "ChessBase"]
[SourceQuality "1"]
[WhiteTeam "Marmara"]
[BlackTeam "UGRA"]
[TimeControl "40/5400+30:1800+30"]

1. e4 {[%emt 0:00:30]} e5 {[%emt 0:01:00]} 2. Nf3 {[%emt 0:00:30]} Nc6 {[%emt 0:00:30]} 3. Bb5 {[%emt 0:00:30]} a6 {[%emt 0:00:30]} 4. Ba4 {[%emt 0:00:30]} Nf6 {[%emt 0:00:30]} 5. O-O {[%emt 0:00:30]} Be7 {[%emt 0:00:30]} 6. Re1 {[%emt 0:00:00]} b5 {[%emt 0:00:00]} 7. Bb3 {[%emt 0:00:00]} d6 {[%emt 0:00:00]} 8. c3 {[%emt 0:00:00]} O-O {[%emt 0:00:00]} 9. h3 {[%emt 0:00:00] LiveBook: 19285 Games} Nb8 {[%emt 0:00:00]} 10. d4 {[%emt 0:01:30]} Nbd7 {[%emt 0:00:00]} 11. Nbd2 {[%emt 0:01:30]} Bb7 {[%emt 0:00:00]} 12. Bc2 {[%emt 0:01:30]} Re8 {[%emt 0:00:00]} 13. Nf1 {[%emt 0:00:30]} Bf8 {[%emt 0:00:00]} 14. Ng3 {[%emt 0:00:30]} g6 {[%emt 0:00:00]} 15. b3 {[%emt 0:07:30]} c5 {[%emt 0:04:00]} 16. d5 {[%emt 0:00:30]} Qc7 {[%emt 0:01:30]} 17. Be3 {[%emt 0:02:30]} c4 {[%emt 0:07:30]} 18. b4 {[%emt 0:00:30]} a5 {[%emt 0:01:30]} 19. a3 {[%emt 0:00:30]} h6 {[%emt 0:07:30]} 20. Qd2 {[%emt 0:02:30]} Kh7 {[%emt 0:00:00]} 21. Nf1 {[%emt 0:08:30]} Ra6 {[%emt 0:08:00]} 22. Reb1 {[%emt 0:06:30]} Rea8 {[%emt 0:01:30]} 23. Qd1 {[%emt 0:00:30]} Nb6 {[%emt 0:07:30]} 24. N1d2 {[%emt 0:02:30]} Nfd7 $2 {[%emt 0:11:30]} (24... Nfxd5 $17 25. exd5 Nxd5) 25. g4 {[%emt 0:05:30]} Bg7 {[%emt 0:08:30]} 26. g5 {[%emt 0:11:30]} h5 {[%emt 0:02:30]} 27. h4 {[%emt 0:03:30]} Bc8 {[%emt 0:06:30]} 28. Kh2 {[%emt 0:15:30]} axb4 {[%emt 0:14:04]} 29. axb4 {[%emt 0:02:30]} Qa7 {[%emt 0:02:01]} 30. Rxa6 {[%emt 0:00:30]} Qxa6 {[%emt 0:00:15]} 31. Rb2 {[%emt 0:05:30]} Nf8 {[%emt 0:07:53]} 32. Bb1 {[%emt 0:05:21]} Na4 {[%emt 0:04:18]} 33. Ra2 {[%emt 0:00:29]} Qb7 {[%emt 0:01:06]} 34. Qc2 {[%emt 0:00:25]} Qd7 {[%emt 0:00:21]} 35. Qc1 {[%emt 0:11:18]} Qh3+ {[%emt 0:03:48]} 36. Kg1 {[%emt 0:00:01]} Qg4+ {[%emt 0:00:54]} 37. Kf1 {[%emt 0:00:15]} Ra6 {[%emt 0:00:22]} 38. Ra3 {[%emt 0:01:01]} Nd7 {[%emt 0:01:02]} 39. Ke2 {[%emt 0:01:04]} Ndb6 {[%emt 0:00:24]} 40. Qg1 {[%emt 0:00:00]} Qd7 {[%emt 0:31:24]} 41. Bc2 {[%emt 0:03:06]} Qb7 {[%emt 0:00:00]} 42. Qa1 {[%emt 0:01:30]} Qa8 {[%emt 0:00:00]} 43. Qc1 {[%emt 0:02:30]} Bg4 {[%emt 0:00:00]} 44. Ke1 {[%emt 0:02:30]} Nxc3 {[%emt 0:00:00]} ({Besser ist} 44... Qc8 $11) 45. Rxc3 {[%emt 0:03:30]} Ra1 {[%emt 0:00:00]} 46. Bb1 {[%emt 0:05:30]} Na4 {[%emt 0:00:00]} 47. Ke2 {[%emt 0:15:07]} Nxc3+ {[%emt 0:00:00]} 48. Qxc3 {[%emt 0:00:30]} Ra3 {[%emt 0:00:00]} 49. Qc2 {[%emt 0:00:30]} c3 {[%emt 0:00:00]} 50. Nf1 {[%emt 0:00:30]} Qc8 {[%emt 0:00:00]} 51. Ba2 {[%emt 0:00:18]} (51. N1h2 $142 Qc4+ 52. Kd1) 51... Bxf3+ {[%emt 0:00:00]} 52. Ke1 {[%emt 0:04:30]} Bxe4 {[%emt 0:00:35]} 53. Qxe4 {[%emt 0:00:30]} Rxa2 {[%emt 0:00:30]} 54. Bc1 {[%emt 0:00:12]} Qf5 {[%emt 0:01:13]} 55. Qxf5 $19 {[%emt 0:01:19]} gxf5 {[%emt 0:00:05]} 56. Ne3 {[%emt 0:00:51]} Kg6 {[%emt 0:00:09]} 0-1

[Event "22nd ECCC Women 2017"]
[Site "Antalya"]
[Date "2017.10.13"]
[Round "5"]
[White "Sade, Defne"]
[Black "Ovechkin, Lilia"]
[Result "1-0"]
[ECO "B27"]
[WhiteElo "1951"]
[BlackElo "1779"]
[Annotator "NA"]
[PlyCount "49"]
[EventType "team-tourn"]
[EventCountry "TUR"]
[SourceTitle "playchess.com"]
[Source "ChessBase"]
[SourceQuality "1"]
[WhiteTeam "Aegean"]
[BlackTeam "Beer Sheva"]
[TimeControl "40/5400+30:1800+30"]

1. e4 g6 2. d4 Bg7 3. Nc3 {[%emt 0:00:30]} c5 {[%emt 0:03:00]} 4. Nf3 {[%emt 0:12:30]} Nc6 {[%emt 0:03:30]} 5. d5 {[%emt 0:05:30]} Ne5 {[%emt 0:03:30]} 6. Nxe5 {[%emt 0:01:30]} Bxe5 {[%emt 0:00:30]} 7. f4 {[%emt 0:00:30]} Bg7 {[%emt 0:03:30]} 8. Be2 {[%emt 0:01:30]} d6 {[%emt 0:00:30]} 9. O-O {[%emt 0:11:30]} Bd7 {[%emt 0:03:30]} 10. Kh1 {[%emt 0:10:30]} a6 {[%emt 0:03:30]} 11. a4 {[%emt 0:04:30]} Qc7 {[%emt 0:03:30]} 12. Bc4 {[%emt 0:04:30]} e6 {[%emt 0:02:30]} 13. dxe6 {[%emt 0:05:30]} Bxe6 {[%emt 0:09:30]} 14. Bxe6 {[%emt 0:01:30]} fxe6 {[%emt 0:00:30]} 15. f5 {[%emt 0:06:30]} Qd7 {[%emt 0:25:30]} 16. fxe6 {[%emt 0:00:30]} Qxe6 {[%emt 0:00:30]} 17. Qd5 {[%emt 0:11:30]} Qxd5 {[%emt 0:08:30]} 18. Nxd5 {[%emt 0:00:30]} O-O-O {[%emt 0:02:30]} 19. Bg5 {[%emt 0:00:30]} Re8 {[%emt 0:02:30]} 20. Rf7 {[%emt 0:00:30]} h6 {[%emt 0:04:52]} 21. Bh4 {[%emt 0:09:09]} g5 {[%emt 0:02:21]} 22. Rxg7 {[%emt 0:00:06]} gxh4 {[%emt 0:01:33]} 23. Rf1 {[%emt 0:00:14]} Kd8 {[%emt 0:06:34]} 24. Rff7 {[%emt 0:00:16]} Rxe4 {[%emt 0:00:22]} 25. Rd7+ {[%emt 0:00:57]} 1-0